Cogmind - Beta 12 @@@ ROGUE MODE // 2023.03.15 @ 00:12:55 Player: Cracklepappy Result: Destroyed by 8R-AWN with 8R-AWN's Boregun Performance ------------- Evolutions (0) 0 Regions Visited (2) 400 Robots Destroyed (23) 115 Value Destroyed (382) 382 Prototype IDs (0) 0 Alien Tech Used (0) 0 Bonus (-66) -66 TOTAL SCORE: 831 Bonus ------- Friendly Fire -66 Cogmind --------- Core Integrity 0/250 Matter 20/300 Energy 250/250 System Corruption 3% Temperature Warm (165) Movement Treading (240) Ox1 Location -10/Mines Parts ------- > --- POWER (1) -------- Ion Engine > --- PROPULSION (2) --- Light Treads > --- UTILITY (2) ------ Medium Storage Unit Targeting Computer > --- WEAPON (2) ------- Beam Cannon Light Cannon > --- INVENTORY (10) --- High-capacity Matter Pod (143) Grenade Launcher Mining Laser Peak State ------------ > --- POWER ------------ Ion Engine > --- PROPULSION ------- Light Treads Light Treads > --- UTILITY ---------- Medium Storage Unit High-capacity Matter Pod > --- WEAPON ----------- Assault Rifle Assault Rifle > --- INVENTORY -------- Light Ion Engine Light Treads Wheel Wheel Compact Wheel Beam Cannon Assault Rifle Light Assault Rifle Grenade Launcher Mining Laser [Rating: 8] Favorites ----------- Power Ion Engine Engine Ion Engine Propulsion Light Treads Treads Light Treads Wheel Compact Wheel Utility Medium Storage Unit Device Seismic Detector Storage Medium Storage Unit Processor Targeting Computer Weapon Assault Rifle Energy Cannon Beam Cannon Ballistic Gun Assault Rifle Ballistic Cannon Light Cannon Launcher Grenade Launcher Build | -11 -10 -10 ------- Run | Jun Mat Min Slots Evolved . | . . . Power . | . . . Propulsion . | . . . Utility . | . . . Weapon . | . . . Parts Attached 38 | 7 22 9 Power 7 | 1 5 1 Engine 7 | 1 5 1 Core . | . . . Reactor . | . . . Propulsion 12 | 2 7 3 Treads 11 | 1 7 3 Leg . | . . . Wheel 1 | 1 . . Hover . | . . . Flight . | . . . Utility 5 | 2 3 . Device 1 | 1 . . Storage 3 | 1 2 . Processor 1 | . 1 . Hackware . | . . . Protection . | . . . Artifact . | . . . Weapon 14 | 2 7 5 Energy Gun . | . . . Energy Cannon 1 | . . 1 Ballistic Gun 9 | 2 5 2 Ballistic Cannon 2 | . 1 1 Launcher 2 | . 1 1 Special Weapon . | . . . Impact Weapon . | . . . Slashing Weapon . | . . . Piercing Weapon . | . . . Special Melee Weapon . | . . . Unidentified Prototypes . | . . . Parts Lost 8 | . 1 7 Power 1 | . . 1 Propulsion 3 | . . 3 Utility 1 | . 1 . Weapon 3 | . . 3 Highest Loss Streak 6 | . 1 6 To Critical Strikes 5 | . . 5 Average Slot Usage (%) 97 | . 98 94 Engine 13 | . 13 14 Treads 22 | . 22 23 Wheel 3 | . 4 . Device 2 | . 3 . Storage 19 | . 20 14 Processor 5 | . 3 14 Ballistic Gun 26 | . 27 24 Naked Turns . | . . . Heaviest Build 23 | 13 23 19 Greatest Support 40 | 20 40 40 Greatest Overweight (x) 6 | . 6 . Average Overweight (x) . | . . . Largest Inventory Capacity 10 | 8 10 10 Average Capacity 9 | 7 9 10 Most Carried 10 | 8 10 10 Average Carried 8 | 5 8 7 Final Capacity 10 | 8 10 10 Final Carried 10 | 8 10 3 Class Distribution -------------------- 95% | Mutant 4% | Scavenger-Mutant Dominant Class ---------------- Mutant | -10/Materials Mutant | -10/Mines Resources | -11 -10 -10 ----------- Run | Jun Mat Min Matter Collected 948 | 312 632 4 Remotely . | . . . Salvage Created 718 | 184 524 10 Parts 62 | 14 48 . Haulers Intercepted 2 | . 2 . Recyclers Shooed 2 | . 2 . Parts Field Recycled . | . . . Retrieved Matter . | . . . Parts Self-Destructed . | . . . Prevented . | . . . Kills | -11 -10 -10 ------- Run | Jun Mat Min Combat Hostiles Destroyed 14 | . 12 2 Guns 10 | . 9 1 AOE 4 | . 3 1 Classes Destroyed 9 | 3 5 1 Worker 1 | 1 . . Builder 1 | . 1 . Tunneler 3 | 3 . . Hauler 2 | . 2 . Recycler 2 | 1 1 . Watcher 2 | . 2 . Swarmer 6 | . 6 . Grunt 6 | . 6 . Assembled 2 | . . 2 Best Kill Streak 5 | 5 5 2 Combat Bots Only 3 | . 3 2 Max Kills in Single Turn 1 | 1 1 1 Gunslinging . | . . . Exploded 1 | . 1 1 Melee . | . . . Uniques/NPCs Destroyed . | . . . Combat | -11 -10 -10 -------- Run | Jun Mat Min Damage Taken 1471 | . 413 1058 Core 269 | . 106 163 Absorbed by Shields . | . . . Core Remaining (%) 100 | 100 . . Volleys Fired 103 | 7 49 47 Largest 2 | 2 2 2 Hottest 95 | 40 40 95 Shots Fired 196 | 14 90 92 Gun 180 | 14 87 79 Cannon 11 | . . 11 Launcher 5 | . 3 2 Special . | . . . Kinetic 186 | 14 87 85 Thermal 5 | . . 5 Explosive 5 | . 3 2 Electromagnetic . | . . . Robot Hit Streak 29 | 4 13 29 Robot Miss Streak 5 | 1 5 2 Penetration Max . | . . . Secondary Targets . | . . . Shots Hit Robots 145 | 9 59 77 Core Hits 52 | 6 30 16 Critical Kills . | . . . Critical Parts Destroyed . | . . . Critical Strikes . | . . . Melee Attacks . | . . . Impact . | . . . Slashing . | . . . Piercing . | . . . Sneak Attacks . | . . . Combat Hostiles . | . . . Follow-up Attacks . | . . . Damage Inflicted 2090 | 109 995 986 Guns 1563 | 109 725 729 Cannons 146 | . . 146 Explosions 364 | . 253 111 Melee . | . . . Ramming 17 | . 17 . Kinetic 1639 | 109 725 805 Thermal 70 | . . 70 Explosive 364 | . 253 111 Electromagnetic . | . . . Impact . | . . . Slashing . | . . . Piercing . | . . . Highest Corruption 3 | . . 3 Average Corruption 3 | . . 3 Corruption Purged . | . . . Corruption Blocked . | . . . Effects 4 | . . 4 Energy Discharges 1 | . . 1 Parts Rejected 1 | . . 1 Misfires 1 | . . 1 Weapon Failures 1 | . . 1 Overload Shots . | . . . Overflow Damage . | . . . Projectiles . | . . . Explosions . | . . . Melee . | . . . Knockbacks 1 | . . 1 Impact . | . . . Kinetic 1 | . . 1 Secondary . | . . . Self-Inflicted Damage 70 | . 54 16 Shots 3 | . 2 1 Rammed 4 | . 4 . Targets Rammed 4 | . 4 . Kicked . | . . . Crushed . | . . . Highest Temperature 165 | . 15 165 Average Temperature 57 | . 5 88 Received Heat Transfer 138 | . 138 . Siege Activations . | . . . Robots Corrupted . | . . . Combat Hostiles . | . . . Parts Fried . | . . . Impact Corruptions . | . . . Robots Melted . | . . . Combat Hostiles . | . . . Parts Melted . | . . . Heat Transferred 36 | . . 36 Parts Sabotaged . | . . . Parts Stolen . | . . . Parts Stripped . | . . . Power Chain Reactions . | . . . Missiles Intercepted . | . . . Alert | -11 -10 -10 ------- Run | Jun Mat Min Peak Influence 434 | 25 434 95 Initial 65 | . 16 65 Average 170 | 7 210 67 Maximum Alert Level 2 | . 2 . Low Security (%) 57 | 100 44 100 Level 1 35 | . 47 . Level 2 6 | . 8 . Level 3 . | . . . Level 4 . | . . . Level 5 . | . . . High Security . | . . . Max Security . | . . . Squads Dispatched 5 | . 5 . Investigation 2 | . 2 . Extermination . | . . . Reinforcement 3 | . 3 . Assault . | . . . Garrison . | . . . Intercept . | . . . Searches Triggered . | . . . Construction Impeded . | . . . Haulers Reinforced . | . . . Active Scanning Responses . | . . . Cargo Convoy Interrupts . | . . . Stealth | -11 -10 -10 --------- Run | Jun Mat Min Distress Signals . | . . . Communications Jammed . | . . . Distress Signals . | . . . Times Spotted 27 | . 24 3 Peak Tracking Total 4 | . 4 2 Tactical Retreats 1 | . 1 . Traps | -11 -10 -10 ------- Run | Jun Mat Min Traps Triggered 5 | . 5 . Indirectly . | . . . Trap Hack Attempts . | . . . Triggered . | . . . Disarmed . | . . . Reprogrammed . | . . . Reused . | . . . Traps Extracted . | . . . Installed . | . . . Triggered . | . . . Machines | -11 -10 -10 ---------- Run | Jun Mat Min Machines Disabled 3 | . 3 . Max in Single Turn 3 | . 3 . Machines Repaired . | . . . Machines Sabotaged . | . . . Overloaded Fab Kills . | . . . Hacking | -11 -10 -10 --------- Run | Jun Mat Min Machines Accessed 8 | . 8 . Terminals 6 | . 6 . Fabricators . | . . . Repair Stations . | . . . Recycling Units 2 | . 2 . Scanalyzers . | . . . Garrison Access . | . . . Total Hacks 20 | . 20 . Successful 6 | . 6 . Failed 14 | . 14 . Catastrophic 3 | . 3 . Database Lockouts . | . . . Manual 7 | . 7 . Terminals 15 | . 15 . Fabricators . | . . . Repair Stations . | . . . Recycling Units 5 | . 5 . Scanalyzers . | . . . Garrison Access . | . . . Terminal Hacks 3 | . 3 . Part Schematic 2 | . 2 . Unreport Threat 1 | . 1 . Fabricator Hacks . | . . . Repair Station Hacks . | . . . Recycling Unit Hacks 2 | . 2 . Retrieve Components 2 | . 2 . Scanalyzer . | . . . Garrison Access Hacks . | . . . Unauthorized Hacks 1 | . 1 . Terminals . | . . . Fabricators . | . . . Repair Stations . | . . . Recycling Units 1 | . 1 . Tunnel 1 | . 1 . Scanalyzers . | . . . Garrison Access . | . . . Data Cores Recovered . | . . . Used . | . . . Hacking Detections 6 | . 6 . Full Trace Events . | . . . Feedback Events . | . . . Feedback Blocked . | . . . Robot Schematics Acquired . | . . . Robots Built . | . . . Authchips . | . . . Time . | . . . Total Robot Build Rating . | . . . Part Schematics Acquired 2 | . 2 . Parts Built . | . . . Authchips . | . . . Time . | . . . Total Part Build Rating . | . . . Parts Repaired . | . . . Time . | . . . Parts Recycled . | . . . Recycled Matter . | . . . Retrieved Matter . | . . . Retrieved Components 19 | . 19 . Parts Scanalyzed . | . . . Part Schematics Acquired . | . . . Parts Damaged . | . . . Bothacking | -11 -10 -10 ------------ Run | Jun Mat Min Used RIF Installer . | . . . Robots Hacked . | . . . Non-combat . | . . . Combat . | . . . Robot Hacks Applied . | . . . Relay Couplers Released . | . . . Fabnet Peak Effective % . | . . . Robots Rewired . | . . . Allies Hacked . | . . . Hacks Repelled . | . . . Allies | -11 -10 -10 -------- Run | Jun Mat Min Total Allies . | . . . Largest Group . | . . . Highest-Rated Group . | . . . Highest-Rated Ally . | . . . Total Orders . | . . . Ally Attacks . | . . . Total Damage . | . . . Kills . | . . . Allies Corrupted . | . . . Allies Melted . | . . . Intel | -11 -10 -10 ------- Run | Jun Mat Min Robot Analysis Total . | . . . Derelict Logs Recovered . | . . . Drone Launches . | . . . Drone Recoveries . | . . . Exploration | -11 -10 -10 ------------- Run | Jun Mat Min Turns Passed 1500 | 134 1143 223 Spaces Moved 763 | 74 649 40 Core 8 | 6 2 . Treads 468 | 36 392 40 Legs . | . . . Wheels 287 | 32 255 . Hover . | . . . Flight . | . . . Fastest Speed 50 | 50 100 160 Average Speed 138 | 125 138 160 Slowest Speed 350 | 160 350 160 Overloaded Moves . | . . . Propulsion Burnouts . | . . . Robots Hopped . | . . . Cave-ins Triggered . | . . . Exploration Rate (%) 38 | 5 97 12 Regions Visited 2 Branch Regions 1 Pre-discovered Areas 1 | . 1 . Known Exits Taken . | . . . Unknown Exits Taken 2 | 1 1 . Scrap Searched . | . . . Spaces Dug . | . . . Terrain Destroyed 91 | . 71 20 Melee . | . . . Projectile . | . . . AOE 91 | . 71 20 Terrain Rammed . | . . . Walls Destroyed . | . . . Machines Disabled . | . . . Actions | -11 -10 -10 --------- Run | Jun Mat Min Total 1014 | 99 804 111 Wait 69 | . 54 15 Move 761 | 73 648 40 Hop . | . . . Pick Up 23 | 11 12 . Fast Attach 17 | 5 12 . Attach 11 | 2 2 7 Detach 1 | . 1 . Swap 10 | . 8 2 Drop 15 | 1 14 . Fire 103 | 7 49 47 Melee . | . . . Ram . | . . . Kick . | . . . Crush 4 | . 4 . Escape Stasis . | . . . Rewire . | . . . Trap . | . . . Miscellaneous . | . . . Route ------- -11/Junkyard -10/Materials (discovered 3 exits: [*Mat x2] / [*Min]) -10/Mines (discovered 1 exit: [*Exi]) History --------- Turn | Location | Event 28 | -11/Junkyard | Discovered new exit (range 16) 135 | -11/Junkyard | Entered Materials 317 | -10/Materials | Build established: Mutant 330 | -10/Materials | Discovered new exit (range 16) 528 | -10/Materials | Discovered new exit (range 12) 986 | -10/Materials | Discovered new exit (range 9) 1278 | -10/Materials | Entered Mines 1294 | -10/Mines | Assembled infested the area 1294 | -10/Mines | Met a Derelict bent on vengeance 1314 | -10/Mines | Core integrity fell below 50% 1336 | -10/Mines | Discovered new exit (range 5) 1370 | -10/Mines | Met 8R-AWN 1374 | -10/Mines | Attacked by 8R-AWN 1439 | -10/Mines | Core integrity fell below 20% 1501 | -10/Mines | Destroyed by 8R-AWN with 8R-AWN's Boregun Last Messages --------------- 01447_ HV Slug penetrates R-06 Scavenger. 01448_ Destroyed Prototype Protection. 01450_ HV Slug penetrates Wall. 01450_ Penetrated by HV Slug. 01454_ Critical hit (Destroy). 01454_ Lgt. Treads destroyed. 01454_ Penetrated by HV Slug. 01465_ System corrupted: Energy discharge (-90). 01467_ Penetrated by HV Slug. 01476_ HV Slug penetrates Wall. 01480_ Penetrated by HV Slug. 01480_ Critical hit (Destroy). 01480_ Lgt. Assault Rifle destroyed. 01480_ Penetrated by HV Slug. 01484_ Assault Rifle destroyed. 01484_ Penetrated by HV Slug. 01486_ 8R-AWN knocked back. 01488_ Penetrated by HV Slug. 01493_ HV Slug penetrates Wall. 01493_ Penetrated by HV Slug. Map ----- +----------------------------------------------------+ | ?????????????????????????????????????????????????? | | ?????????????????????????????????????????????????? | | ?????????????????????????????????????????????????? | | ?????????????????????????????????????????????????? | | ?????????????????????????????????????????????????? | | ?????????????????????????????????????????????????? | | ?????????????????????????????????????????????????? | | ?????????????????????????????????????????????????? | | ?????????????????????????????????????????????????? | | ??????????????????????????????????????###?##?????? | | ????????????????????????????????###???# ??????? | | ????????????????????????????????# ??? ???????? | | ????????????????????????????????# #???# #???????? | | ????????????????????????????????# #???# #???????? | | ???????????????????????######???# #?### #??????#? | | ????????????????????#### # #???# ### #????? #? | | ????????????????????# ##### ###### ## | | ???????????????#????# """ # | | ?????????????###"#### """ # """" | | ?????????????# ##### """ ## """" | | ?????????????# ##???#### """" | | ?????????????# ##"### ###???????## ## | | ????????????????????### ##??????????# ######### | | ??????????????????????# #???????????# ##???????? | | ??????????????????????#%##########??# ###????????? | | ??????????????????????#g%@;; ; ; ????????? | | ??????????????????????##; #######??# #??????????? | | ???????????????????????## ;#????????# #??????????? | | ???????????????????????# # ????????# #??????????? | | ???????????????????????# ### ???????# ???????????? | | ??????????????????????#< #??##??????##???????????? | | ??????????????????????####???????????????????????? | | ?????????????????????????????????????????????????? | | ?????????????????????????????????????????????????? | | ?????????????????????????????????????????????????? | | ?????????????????????????????????????????????????? | | ?????????????????????????????????????????????????? | | | | | | | | | | | | | | | | | | | | | | | | | | | +----------------------------------------------------+ Best States ------------- Heat Dissipation 25 Energy Generation 10 Energy Capacity 250 Matter Stores 500 Matter Capacity 500 Sight Range 16 Terrain Scan Density 10 Evasion (%) 40 Targeting Accuracy 5 Recoil Reduction 2 Item Schematics ----------------- Huge Storage Unit | -10/Materials | Hacked Hcp. Storage Unit | -10/Materials | Hacked Robot Schematics ------------------ None Fabricated ------------ Nothing Alien Tech Used ----------------- None Achievements -------------- None Challenges ------------ None Game ------ Seed MinesnifferFusionWell Manual? 0 Play Time 00:21:34 Cumulative 445.5 hours Start 2023.03.14 @ 23:50:20 End 2023.03.15 @ 00:12:55 Sessions 1 Manual Loads 0 Difficulty Rogue Special Mode None Game No. 350 Rogue 350 Adventurer 0 Explorer 0 Win Type - Total 11 Types 7/2/0/0/0/0/2/0/0 Lore% 76 Gallery% 89 Achievement% 75 Wizard Run 0 Options --------- ASCII 0 Keyboard 0 Movement Numpad Keybinds 0 Fullscreen 2 Font 24/Terminus Map View 76x50 Tactical HUD 1 Map Filters NONE Filters NONE Steam 1 RUN: e619ea96-2c6b-421b-a301-6f8203ba9188